fUST/lending_fUST_20260614
["ID","MTS","AMOUNT","RATE_DAILY","PERIOD"]
[425015489,1781427032000,-152.0,0.00021562,7]
[425015485,1781427032000,-1114.04480718,0.00021417,2]
[425015483,1781427032000,-480.99586402,0.00021417,2]
[425015497,1781427032000,-3864.68135724,0.00022044,2]
[425015487,1781427032000,-152.0,0.00021562,7]
[425015584,1781427039000,-58.34927698,0.000221,9]
[425015583,1781427039000,-151.0,0.000221,7]
[425015582,1781427039000,-1555.26733414,0.00022044,2]
[425015606,1781427041000,-500.0,0.00022143,2]
[425015610,1781427041000,-500.0,0.00022143,2]
[425015604,1781427041000,-500.0,0.00022143,2]
[425015599,1781427041000,-151.0,0.000221,6]
[425015598,1781427041000,-92.65072302,0.000221,9]
[425015607,1781427041000,-146.64263455,0.00022143,2]
[425015600,1781427041000,-300.0,0.00022142,2]
[425015611,1781427041000,-500.0,0.00022143,2]
[425015612,1781427041000,-500.0,0.00022143,2]
[425015603,1781427041000,-500.0,0.00022143,2]
[425015609,1781427041000,-500.0,0.00022143,2]
[425015608,1781427041000,-72.09209308,0.00022143,2]
[425015605,1781427041000,-500.0,0.00022143,2]
[425015601,1781427041000,-434.0608296,0.00022143,2]
[425015613,1781427041000,-500.0,0.00022143,2]
[425015615,1781427041000,-6999.92104445,0.00022144,2]
[425015614,1781427041000,-300.0,0.00022144,2]
[425015602,1781427041000,-284.54842084,0.00022143,2]
[425015639,1781427047000,-1408.53914278,0.00022144,2]
[425015642,1781427047000,-16858.30744362,0.00022144,2]
[425015649,1781427663000,510.96,0.0002411,30]
[425015667,1781428231000,-202.10259775,0.00018362,2]
[425015668,1781428231000,-224.62728308,0.00019329,2]
[425015695,1781428238000,-757.03469355,0.00021692,2]
[425015690,1781428238000,-210.13632319,0.00019329,2]
[425015692,1781428238000,-363.42089128,0.00019416,2]
[425015693,1781428238000,-156.0,0.00021163,2]
[425015694,1781428238000,-1000.0,0.00021263,2]
[425015696,1781428238000,-4492.31426004,0.00021692,2]
[425015691,1781428238000,-1738.95431621,0.00019416,2]
[425015698,1781428238000,-471.18751251,0.00021743,2]
[425015700,1781428238000,-500.0,0.00021743,2]
[425015701,1781428238000,-422.94420016,0.00021743,2]
[425015699,1781428238000,-199.18389459,0.00021743,2]
[425015702,1781428238000,-300.0,0.00021744,4]
[425015703,1781428238000,-2599.02545574,0.00021744,2]
[425015697,1781428238000,-500.0,0.00021743,2]
[425015717,1781428243000,-363.24938555,0.00021743,2]
[425015725,1781428246000,-8794.11959548,0.00021744,2]
[425015724,1781428246000,-113071.02439298,0.00021744,2]
[425015722,1781428246000,-2963.45348386,0.00021743,2]
[425015723,1781428246000,-9625.50758144,0.00021744,2]
[425015727,1781428585000,1000.0,0.0002411,30]
[425015728,1781428827000,206.01316164,0.00022554,30]
[425015729,1781428827000,206.01316164,0.00022813,60]
[425015730,1781428828000,206.01316164,0.00023072,60]
[425015731,1781428829000,206.01316164,0.00023331,120]
[425015809,1781429432000,-194.37521901,0.00019156,2]
[425015810,1781429432000,-358.47489372,0.00019156,2]
[425015811,1781429432000,-74.98321635,0.00019156,2]
[425015807,1781429432000,-307.13895151,0.00019156,2]
[425015813,1781429432000,-234.20342248,0.00019156,2]
[425015812,1781429432000,-673.65800602,0.00019156,2]
[425015814,1781429432000,-88.8653111,0.00019156,2]
[425015815,1781429432000,-1446.82944647,0.00019156,2]
[425015816,1781429432000,-333.03663256,0.00019231,2]
[425015817,1781429432000,-220.41187789,0.00019277,2]
[425015827,1781429432000,-1171.28625879,0.0002022,2]
[425015820,1781429432000,-300.0,0.00019538,2]
[425015822,1781429432000,-155.0588701,0.00019614,2]
[425015832,1781429432000,-670.94,0.00020251,2]
[425015830,1781429432000,-393.19904645,0.00020244,2]
[425015829,1781429432000,-6436.38141531,0.0002022,2]
[425015831,1781429432000,-754.74859535,0.00020251,2]
[425015824,1781429432000,-254.7419739,0.00020163,2]
[425015826,1781429432000,-269.60740291,0.00020165,2]
[425015818,1781429432000,-251.89928902,0.00019277,2]
[425015825,1781429432000,-235.90647755,0.00020165,2]
[425015864,1781429440000,-206.01316164,0.00021519,2]
[425015854,1781429440000,-783.5004551,0.00020251,2]
[425015855,1781429440000,-1000.0,0.00020274,2]
[425015857,1781429440000,-209.944,0.00021153,2]
[425015858,1781429440000,-420.84030548,0.00021271,2]
[425015859,1781429440000,-4593.1803344,0.000214,2]
[425015861,1781429440000,-151.0,0.000215,4]
[425015860,1781429440000,-151.0,0.000215,4]
[425015863,1781429440000,-151.0,0.000215,4]
[425015856,1781429440000,-13677.63233462,0.00020861,9]
[425015870,1781429440000,-300.0,0.00021544,2]
[425015867,1781429440000,-1843.431,0.00021521,2]
[425015871,1781429440000,-300.0,0.00021544,4]
[425015868,1781429440000,-7495.7980808,0.00021527,2]
[425015869,1781429440000,-455.82,0.00021534,3]
[425015865,1781429440000,-186.134,0.00021521,2]
[425015872,1781429440000,-72151.45954636,0.00021544,2]
[425015873,1781429440000,-1609.06079025,0.00021544,2]
[425015874,1781429440000,-3585.36740699,0.00021544,2]
[425015866,1781429440000,-445.0,0.00021521,2]
[425015949,1781429446000,-3000.0,0.00021544,2]
[425015948,1781429446000,-1565.1,0.00021544,2]
[425015952,1781429505000,152.0,0.00023978,30]
[425015953,1781429567000,-500.0,0.0002086,2]
[425015954,1781429798000,152.0,0.00023978,30]
[425015994,1781430638000,-1.6220324,0.00019277,7]
[425015995,1781430638000,-1185.33753516,0.00019663,7]
[425015996,1781430638000,-1185.33753516,0.00020241,7]
[425015997,1781430638000,-199.1538993,0.00020367,2]
[425016007,1781430638000,-152.87,0.00020893,2]
[425015998,1781430638000,-59.01797003,0.00020805,2]
[425016000,1781430638000,-1185.33753516,0.00020819,7]
[425016004,1781430638000,-500.0,0.0002086,2]
[425016001,1781430638000,-152.66,0.00020826,2]
[425016002,1781430638000,-152.72,0.00020832,2]
[425015993,1781430638000,-1183.71550276,0.00019277,7]
[425016006,1781430638000,-500.0,0.0002086,2]
[425015999,1781430638000,-93.63202997,0.00020805,2]
[425016003,1781430638000,-500.0,0.0002086,2]
[425016016,1781430638000,-445.0,0.00021249,2]
[425016018,1781430638000,-177.2318941,0.00021491,2]
[425016014,1781430638000,-1139.28527676,0.00021036,2]
[425016013,1781430638000,-640.84796818,0.00021036,2]
[425016015,1781430638000,-1780.13324494,0.00021036,2]
[425016012,1781430638000,-356.02664899,0.00021036,2]
[425016011,1781430638000,-822.47756631,0.00021036,2]
[425016010,1781430638000,-462.64363105,0.00021036,2]
[425016009,1781430638000,-257.02423947,0.00021036,2]
[425016008,1781430638000,-154.54,0.00020983,2]
[425016017,1781430638000,-186.0,0.00021249,2]
[425016005,1781430638000,-527.22027749,0.0002086,2]
[425016023,1781430639000,-500.0,0.00021542,2]
[425016020,1781430639000,-520.19816249,0.00021527,2]
[425016019,1781430639000,-500.0,0.00021527,2]
[425016022,1781430639000,-500.0,0.00021542,2]
[425016021,1781430639000,-167.956,0.00021527,2]
[425016025,1781430639000,-500.0,0.00021542,2]
[425016030,1781430639000,-8246.18349024,0.0002165,2]
[425016026,1781430639000,-308.21945307,0.00021543,2]
[425016027,1781430639000,-1185.3375352,0.0002159,7]
[425016029,1781430639000,-680424.65649875,0.0002165,2]
[425016028,1781430639000,-500.0,0.00021643,2]
[425016024,1781430639000,-694.72,0.00021542,2]
[425016032,1781430640000,-7114.47732637,0.0002165,2]
[425016091,1781430643000,-766.0873,0.0002165,2]
[425016085,1781430643000,-628.1247688,0.0002165,2]
[425016083,1781430643000,-934.4883103,0.0002165,2]
[425016087,1781430643000,-3576.91254535,0.0002165,2]
[425016080,1781430643000,-22291.35696604,0.0002165,2]
[425016057,1781430643000,-34272.3516029,0.0002165,2]
[425016055,1781430643000,-12623.34108908,0.0002165,2]
[425016126,1781430646000,-5453.058894,0.0002165,2]
[425016128,1781430646000,-29107.67765022,0.0002165,2]
[425016132,1781430646000,-379.01511469,0.0002165,2]
[425016130,1781430646000,-84175.74853452,0.0002165,2]
[425016129,1781430646000,-6967.4,0.0002165,2]
[425016131,1781430646000,-13270.57507934,0.0002165,2]
[425016142,1781431253000,-1634.76791895,0.0001,2]
[425016143,1781431270000,-2561.55243615,0.00012,2]
[425016144,1781431287000,-1634.76791895,0.00012,2]
[425016145,1781431303000,-2561.55243615,0.00012,2]
[425016146,1781431320000,-1634.76791895,0.00012,2]
[425016147,1781431337000,-2561.55243615,0.00012,2]
[425016148,1781431354000,-1617.0805292,0.00012,2]
[425016149,1781431630000,152.0,0.00023926,30]
[425016154,1781431710000,305.49,0.00024085,30]
[425016191,1781431832000,-272.7645464,0.00019539,2]
[425016187,1781431832000,-2560.82848084,0.00018052,2]
[425016195,1781431832000,-1152.42220785,0.00019588,2]
[425016193,1781431832000,-484.91474916,0.00019539,2]
[425016189,1781431832000,-151.53585911,0.00019539,2]
[425016280,1781431838000,-14173.16744147,0.00021349,2]
[425016279,1781431838000,-1129.39074962,0.00021349,2]
[425016278,1781431838000,-51918.77829194,0.00021349,2]
[425016276,1781431838000,-756.92161627,0.00020802,2]
[425016277,1781431838000,-1159.33062182,0.00021349,2]
[425016274,1781431838000,-186.0,0.00020387,2]
[425016275,1781431838000,-445.0,0.00020387,2]
[425016273,1781431838000,-684.0544808,0.00020332,2]
[425016272,1781431838000,-3543.460393,0.00019588,2]
[425016281,1781431839000,-1797.19546501,0.00021349,2]
[425016291,1781431841000,-4602.19294629,0.00021349,2]
[425016308,1781431843000,-4133.93835324,0.00021349,2]
[425016310,1781431844000,-735.48143251,0.00021349,2]
[425016309,1781431844000,-3278.99187919,0.00021349,2]
[425016324,1781431847000,-501.49444097,0.00021348,2]
[425016325,1781431847000,-55701.74230647,0.00021349,2]
[425016327,1781432156000,152.0,0.0002378,30]
[425016328,1781432456000,152.0,0.00024098,30]
[425016474,1781433032000,-470.88010414,0.00016177,2]
[425016473,1781433032000,-2410.48428835,0.00016015,2]
[425016472,1781433032000,-380.012783,0.00016015,2]
[425016471,1781433032000,-1072.97938078,0.00016015,2]
[425016469,1781433032000,-280.92761352,0.0001509,14]
[425016470,1781433032000,-482.84390297,0.00016015,2]
[425016523,1781433040000,-820.992352,0.00016177,2]
[425016524,1781433041000,-581.12633597,0.00016177,2]
[425016547,1781433047000,-319.36760956,0.00021047,2]
[425016544,1781433047000,-12647.46785062,0.00021047,2]
[425016545,1781433047000,-4387.00876514,0.00021047,2]
[425016543,1781433047000,-281.85794225,0.000205,2]
[425016542,1781433047000,-652.7317321,0.00020313,2]
[425016541,1781433047000,-1026.70062254,0.00020001,2]
[425016540,1781433047000,-657.74614457,0.00019475,2]
[425016539,1781433047000,-369.98220632,0.00019475,2]
[425016538,1781433047000,-205.54567018,0.00019475,2]
[425016537,1781433047000,-32.96783142,0.00016177,2]
[425016536,1781433047000,-300.0,0.00016177,2]
[425016596,1781433554000,10000.0,0.0002411,30]
[425016598,1781433587000,8425.0,0.0002411,30]
[425016702,1781434231000,-456.8020502,0.00015078,2]
[425016705,1781434231000,-433.45811007,0.00015078,2]
[425017007,1781434240000,-267.77939956,0.00015078,2]
[425017264,1781434246000,-3159.82100886,0.00015078,2]
[425017266,1781434246000,-321.80123921,0.00017279,2]
[425017268,1781434246000,-1000.0,0.00018913,2]
[425017270,1781434246000,-264.4210767,0.00018992,2]
[425017274,1781434246000,-500.0,0.00019725,2]
[425017276,1781434246000,-38.83736883,0.00019725,2]
[425017272,1781434246000,-500.0,0.00019725,2]
[425019975,1781434648000,25223.53695912,7.6e-05,2]
[425020049,1781435433000,-3252.11310834,0.000115,2]
[425020047,1781435433000,-2931.62047764,0.000115,2]
[425020074,1781435438000,-400.02095422,0.000115,2]
[425020075,1781435438000,-1730.58368539,0.000115,2]
[425020323,1781435440000,-4863.71438205,0.000115,2]
[425020613,1781435443000,-500.68,0.000115,2]
[425020611,1781435443000,-797.9436118,0.000115,2]
[425020652,1781435443000,-418.93857618,0.000115,2]
[425021140,1781435447000,-500.0,0.00011898,2]
[425021131,1781435447000,-500.0,0.00011898,2]
[425021135,1781435447000,-425.65606917,0.00011898,2]
[425021133,1781435447000,-500.0,0.00011898,2]
[425021139,1781435447000,-500.0,0.00011898,2]
[425021129,1781435447000,-500.0,0.00011898,2]
[425021125,1781435447000,-500.0,0.00011898,2]
[425021127,1781435447000,-500.0,0.00011898,2]
[425021121,1781435447000,-500.0,0.00011898,2]
[425021123,1781435447000,-500.0,0.00011898,2]
[425021119,1781435447000,-500.0,0.00011898,2]
[425021117,1781435447000,-500.0,0.00011898,2]
[425021115,1781435447000,-500.0,0.00011898,2]
[425021111,1781435447000,-500.0,0.00011898,2]
[425021105,1781435447000,-500.0,0.00011898,2]
[425021091,1781435447000,-500.0,0.00011898,2]
[425021113,1781435447000,-500.0,0.00011898,2]
[425021109,1781435447000,-500.0,0.00011898,2]
[425021103,1781435447000,-470.04656491,0.00011898,2]
[425021101,1781435447000,-500.0,0.00011898,2]
[425021097,1781435447000,-500.0,0.00011898,2]
[425021095,1781435447000,-500.0,0.00011898,2]
[425021099,1781435447000,-500.0,0.00011898,2]
[425021093,1781435447000,-500.0,0.00011898,2]
[425021087,1781435447000,-500.0,0.00011898,2]
[425021085,1781435447000,-551.21027201,0.00011898,2]
[425021083,1781435447000,-4688.74101974,0.000115,2]
[425021089,1781435447000,-500.84930981,0.00011898,2]
[425021061,1781435447000,-3845.95424901,0.000115,2]
[425021142,1781435447000,-500.0,0.00011898,2]
[425021107,1781435447000,-500.0,0.00011898,2]
[425021146,1781435447000,-500.0,0.00011898,2]
[425021137,1781435447000,-500.0,0.00011898,2]
[425021155,1781435447000,-500.0,0.00011898,2]
[425021187,1781435447000,-500.0,0.00011898,2]
[425021191,1781435447000,-500.0,0.00011898,2]
[425021189,1781435447000,-500.0,0.00011898,2]
[425021184,1781435447000,-500.0,0.00011898,2]
[425021185,1781435447000,-500.0,0.00011898,2]
[425021193,1781435447000,-500.0,0.00011898,2]
[425021182,1781435447000,-502.26457027,0.00011898,2]
[425021199,1781435447000,-500.0,0.00011898,2]
[425021203,1781435447000,-500.0,0.00011898,2]
[425021205,1781435447000,-500.0,0.00011898,2]
[425021201,1781435447000,-500.0,0.00011898,2]
[425021212,1781435447000,-203.80392407,0.00011999,2]
[425021207,1781435447000,-500.0,0.00011898,2]
[425021144,1781435447000,-500.0,0.00011898,2]
[425021197,1781435447000,-500.0,0.00011898,2]
[425021173,1781435447000,-500.0,0.00011898,2]
[425021195,1781435447000,-500.0,0.00011898,2]
[425021175,1781435447000,-500.0,0.00011898,2]
[425021178,1781435447000,-500.0,0.00011898,2]
[425021156,1781435447000,-500.0,0.00011898,2]
[425021148,1781435447000,-500.0,0.00011898,2]
[425021150,1781435447000,-500.0,0.00011898,2]
[425021152,1781435447000,-500.0,0.00011898,2]
[425021210,1781435447000,-5041.99633269,0.00011899,2]
[425021158,1781435447000,-490.02989114,0.00011898,2]
[425021163,1781435447000,-500.0,0.00011898,2]
[425021165,1781435447000,-500.0,0.00011898,2]
[425021161,1781435447000,-9.97010886,0.00011898,2]
[425021167,1781435447000,-500.0,0.00011898,2]
[425021169,1781435447000,-500.0,0.00011898,2]
[425021171,1781435447000,-500.0,0.00011898,2]
[425021180,1781435447000,-471.96506395,0.00011898,2]
[425021153,1781435447000,-500.0,0.00011898,2]
[425023915,1781436632000,-466.082414,0.0001383,2]
[425023917,1781436632000,-834.17529196,0.0001383,2]
[425023911,1781436632000,-176.58756884,0.00012735,7]
[425023916,1781436632000,-3856.69292001,0.0001383,2]
[425023914,1781436632000,-518.20445619,0.00013698,2]
[425023912,1781436632000,-176.58756885,0.00013207,7]
[425023910,1781436632000,-302.0,0.00012382,7]
[425023901,1781436632000,-176.58756884,0.00011792,7]
[425023908,1781436632000,-302.0,0.00012382,7]
[425023906,1781436632000,-176.58756884,0.00012028,7]
[425023905,1781436632000,-1054.06903158,0.00012,2]
[425023904,1781436632000,-2082.85073762,0.00012,2]
[425023903,1781436632000,-114.92867895,0.00012,2]
[425023902,1781436632000,-177.2318942,0.00011792,2]
[425023913,1781436632000,-10409.976802,0.00013387,2]
[425023909,1781436632000,-176.58756884,0.00012382,7]
[425023919,1781436632000,-434.48894257,0.00015119,2]
[425023907,1781436632000,-243.4081473,0.00012028,7]
[425023921,1781436632000,-460.51335903,0.00015693,2]
[425023920,1781436632000,-678.21008379,0.00015119,2]
[425023936,1781436632000,-452.47896199,0.00016546,2]
[425023933,1781436632000,-378.21971407,0.00016546,2]
[425023932,1781436632000,-500.0,0.00016546,2]
[425023931,1781436632000,-500.0,0.00016546,2]
[425023927,1781436632000,-500.0,0.00016546,2]
[425023923,1781436632000,-80.05744242,0.00015831,2]
[425023926,1781436632000,-500.0,0.00016236,2]
[425023934,1781436632000,-121.78028593,0.00016546,2]
[425023929,1781436632000,-500.0,0.00016546,2]
[425023924,1781436632000,-638.77512893,0.00015831,2]
[425023928,1781436632000,-500.0,0.00016546,2]
[425023930,1781436632000,-500.0,0.00016546,2]
[425023925,1781436632000,-708.019857,0.00015928,2]
[425023918,1781436632000,-380.17782475,0.00015119,2]
[425023922,1781436632000,-402.94918915,0.00015693,2]
[425023935,1781436632000,-500.0,0.00016546,2]
[425023999,1781436638000,-3394.98383654,0.00016547,2]
[425024267,1781436641000,-415.519,0.00016547,2]
[425024264,1781436641000,-306.61259549,0.00016547,2]
[425024526,1781436643000,-313.8742889,0.00016547,2]
[425024527,1781436643000,-27.4482046,0.00016598,2]
[425024829,1781436646000,-500.0,0.00016646,2]
[425024831,1781436646000,-572.80671356,0.00016646,2]
[425024833,1781436646000,-151.0,0.00016647,2]
[425024823,1781436646000,-472.5517954,0.00016598,2]
[425024825,1781436646000,-708.019857,0.00016598,2]
[425024827,1781436646000,-321.38086624,0.00016645,2]
[425024837,1781436646000,-151.0,0.00016647,2]
[425024839,1781436646000,-151.0,0.00016647,2]
[425024835,1781436646000,-151.0,0.00016647,2]
[425024843,1781436646000,-151.0,0.00016647,2]
[425024847,1781436646000,-151.0,0.00016647,2]
[425024853,1781436646000,-151.0,0.00016647,2]
[425024845,1781436646000,-151.0,0.00016647,2]
[425024849,1781436646000,-151.0,0.00016647,2]
[425024855,1781436646000,-151.0,0.00016647,2]
[425024851,1781436646000,-178.522627,0.00016647,2]
[425024859,1781436646000,-500.0,0.00016649,2]
[425024857,1781436646000,-151.0,0.00016647,2]
[425024841,1781436646000,-151.0,0.00016647,2]
[425024895,1781436647000,-500.0,0.00017471,2]
[425024902,1781436647000,-500.0,0.00018019,2]
[425024900,1781436647000,-708.019857,0.00017939,2]
[425024898,1781436647000,-500.0,0.00017745,2]
[425024906,1781436647000,-209.99964529,0.00018304,2]
[425024893,1781436647000,-1133.19647643,0.00017389,2]
[425024913,1781436647000,-226.86616145,0.00018304,2]
[425024910,1781436647000,-374.62436722,0.00018304,2]
[425024887,1781436647000,-708.019857,0.00017269,2]
[425024915,1781436647000,-500.0,0.00018567,2]
[425024897,1781436647000,-4430.98972092,0.00017609,2]
[425024885,1781436647000,-500.0,0.00017197,2]
[425024883,1781436647000,-10232.99441358,0.00017,2]
[425024881,1781436647000,-7357.0835651,0.00017,2]
[425024891,1781436647000,-725.97171663,0.00017389,2]
[425024869,1781436647000,-279.75657701,0.00016997,2]
[425024889,1781436647000,-408.35909061,0.00017389,2]
[425024878,1781436647000,-500.0,0.00016999,2]
[425024876,1781436647000,-665.77,0.00016999,2]
[425024871,1781436647000,-500.0,0.00016997,2]
[425024873,1781436647000,-500.0,0.00016997,2]
[425024865,1781436647000,-665.77,0.00016997,2]
[425024866,1781436647000,-220.24342299,0.00016997,2]
[425024863,1781436647000,-500.0,0.00016923,2]
[425024861,1781436647000,-503.00471781,0.00016842,2]
[425024880,1781436647000,-500.0,0.00016999,2]
[425024908,1781436647000,-239.99959462,0.00018304,2]
[425024921,1781436647000,-500.0,0.00018841,2]
[425024917,1781436647000,-708.019857,0.0001861,2]
[425024904,1781436647000,-500.0,0.00018293,2]
[425024970,1781436647000,-14.86619343,0.00019177,2]
[425024968,1781436647000,-665.89969804,0.00019177,2]
[425024957,1781436647000,-665.77,0.00019177,2]
[425024967,1781436647000,-665.77,0.00019177,2]
[425024960,1781436647000,-665.77,0.00019177,2]
[425024962,1781436647000,-665.77,0.00019177,2]
[425024964,1781436647000,-665.77,0.00019177,2]
[425024953,1781436647000,-665.77,0.00019177,2]
[425024955,1781436647000,-665.77,0.00019177,2]
[425024947,1781436647000,-665.77,0.00019177,2]
[425024951,1781436647000,-665.77,0.00019177,2]
[425024949,1781436647000,-665.77,0.00019177,2]
[425024958,1781436647000,-665.77,0.00019177,2]
[425024943,1781436647000,-665.77,0.00019177,2]
[425024945,1781436647000,-665.77,0.00019177,2]
[425024925,1781436647000,-500.0,0.00019115,2]
[425024923,1781436647000,-434.15784844,0.00018991,2]
[425024929,1781436647000,-665.77,0.00019177,2]
[425024919,1781436647000,-4430.98972092,0.00018671,2]
[425024927,1781436647000,-665.77,0.00019177,2]
[425024931,1781436647000,-665.77,0.00019177,2]
[425024939,1781436647000,-665.77,0.00019177,2]
[425024933,1781436647000,-665.77,0.00019177,2]
[425024935,1781436647000,-665.77,0.00019177,2]
[425024941,1781436647000,-665.77,0.00019177,2]
[425024937,1781436647000,-665.77,0.00019177,2]
[425031877,1781436729000,-500.0,0.00016545,2]
[425031878,1781436746000,-296.56380657,0.00019177,2]
[425031929,1781437833000,-445.86110437,0.00018245,2]
[425031923,1781437833000,-152.0,0.0001321,7]
[425031926,1781437833000,-500.0,0.00016545,2]
[425031927,1781437833000,-303.84960746,0.00016545,2]
[425031930,1781437833000,-299.2909083,0.00018972,2]
[425031928,1781437833000,-183.93639223,0.00018245,2]
[425031931,1781437833000,-172.10419606,0.00019071,2]
[425031932,1781437833000,-172.054,0.00019074,2]
[425031933,1781437833000,-140.75991272,0.00019168,2]
[425031925,1781437833000,-500.0,0.00015118,2]
[425032013,1781437838000,-500.0,0.00019168,2]
[425032007,1781437838000,-500.0,0.00019168,2]
[425032005,1781437838000,-500.0,0.00019168,2]
[425032011,1781437838000,-500.0,0.00019168,2]
[425032009,1781437838000,-500.0,0.00019168,2]
[425032003,1781437838000,-500.0,0.00019168,2]
[425031995,1781437838000,-359.24008728,0.00019168,2]
[425031999,1781437838000,-500.0,0.00019168,2]
[425031997,1781437838000,-500.0,0.00019168,2]
[425032001,1781437838000,-500.0,0.00019168,2]
[425032015,1781437838000,-500.0,0.00019168,2]
[425032104,1781437839000,-500.0,0.00019168,2]
[425032097,1781437839000,-500.0,0.00019168,2]
[425032093,1781437839000,-500.0,0.00019168,2]
[425032095,1781437839000,-500.0,0.00019168,2]
[425032077,1781437839000,-500.0,0.00019168,2]
[425032088,1781437839000,-500.0,0.00019168,2]
[425032090,1781437839000,-500.0,0.00019168,2]
[425032087,1781437839000,-500.0,0.00019168,2]
[425032073,1781437839000,-500.0,0.00019168,2]
[425032071,1781437839000,-500.0,0.00019168,2]
[425032081,1781437839000,-500.0,0.00019168,2]
[425032075,1781437839000,-500.0,0.00019168,2]
[425032106,1781437839000,-500.0,0.00019168,2]
[425032100,1781437839000,-500.0,0.00019168,2]
[425032098,1781437839000,-454.19309672,0.00019168,2]
[425032102,1781437839000,-500.0,0.00019168,2]
[425032113,1781437839000,-500.0,0.00019168,2]
[425032108,1781437839000,-500.0,0.00019168,2]
[425032112,1781437839000,-500.0,0.00019168,2]
[425032115,1781437839000,-500.0,0.00019168,2]
[425032119,1781437839000,-500.0,0.00019168,2]
[425032083,1781437839000,-500.0,0.00019168,2]
[425032117,1781437839000,-500.0,0.00019168,2]
[425032127,1781437839000,-235.04429039,0.00019168,2]
[425032125,1781437839000,-500.0,0.00019168,2]
[425032121,1781437839000,-500.0,0.00019168,2]
[425032123,1781437839000,-500.0,0.00019168,2]
[425032110,1781437839000,-500.0,0.00019168,2]
[425032069,1781437839000,-500.0,0.00019168,2]
[425032024,1781437839000,-500.0,0.00019168,2]
[425032067,1781437839000,-500.0,0.00019168,2]
[425032129,1781437839000,-264.95570961,0.00019168,2]
[425032018,1781437839000,-500.0,0.00019168,2]
[425032016,1781437839000,-500.0,0.00019168,2]
[425032020,1781437839000,-500.0,0.00019168,2]
[425032022,1781437839000,-500.0,0.00019168,2]
[425032026,1781437839000,-500.0,0.00019168,2]
[425032031,1781437839000,-500.0,0.00019168,2]
[425032028,1781437839000,-500.0,0.00019168,2]
[425032033,1781437839000,-500.0,0.00019168,2]
[425032035,1781437839000,-500.0,0.00019168,2]
[425032037,1781437839000,-500.0,0.00019168,2]
[425032030,1781437839000,-500.0,0.00019168,2]
[425032039,1781437839000,-500.0,0.00019168,2]
[425032085,1781437839000,-500.0,0.00019168,2]
[425032041,1781437839000,-500.0,0.00019168,2]
[425032047,1781437839000,-500.0,0.00019168,2]
[425032052,1781437839000,-500.0,0.00019168,2]
[425032050,1781437839000,-500.0,0.00019168,2]
[425032056,1781437839000,-500.0,0.00019168,2]
[425032045,1781437839000,-500.0,0.00019168,2]
[425032058,1781437839000,-500.0,0.00019168,2]
[425032054,1781437839000,-500.0,0.00019168,2]
[425032048,1781437839000,-500.0,0.00019168,2]
[425032060,1781437839000,-500.0,0.00019168,2]
[425032065,1781437839000,-500.0,0.00019168,2]
[425032063,1781437839000,-500.0,0.00019168,2]
[425032062,1781437839000,-500.0,0.00019168,2]
[425032079,1781437839000,-500.0,0.00019168,2]
[425032043,1781437839000,-500.0,0.00019168,2]
[425032131,1781437839000,-500.0,0.00019168,2]
[425032229,1781437839000,-501.22472386,0.00019178,2]
[425032133,1781437839000,-500.0,0.00019168,2]
[425032197,1781437839000,-500.0,0.00019178,2]
[425032201,1781437839000,-500.0,0.00019178,2]
[425032196,1781437839000,-500.0,0.00019178,2]
[425032211,1781437839000,-500.0,0.00019178,2]
[425032207,1781437839000,-514.76051848,0.00019178,2]
[425032203,1781437839000,-500.0,0.00019178,2]